[Event "Titled Tuesday Blitz July 11 Early 2023"]
[White "Molina Carretero, Daniel"]
[Black "Rangel, Daniel"]
[WhiteFideId "32071914"]
[BlackFideId "2124475"]
[WhiteElo "2372"]
[BlackElo "2518"]
[Result "1-0"]
[Round "4"]
[TimeControl "180+2"]
[Date "2023.07.11"]
[WhiteClock "0:01:01"]
[BlackClock "0:01:40"]
[Board "143"]

1. c4 {[%clk 0:03:00]}  Nf6 {[%clk 0:02:55]} 2. g3 {[%clk 0:03:00]}  e6 {[%clk 0:02:56]} 3. Nf3 {[%clk 0:03:00]}  d5 {[%clk 0:02:57]} 4. b3 {[%clk 0:03:01]}  Be7 {[%clk 0:02:58]} 5. Bg2 {[%clk 0:03:01]}  O-O {[%clk 0:02:59]} 6. O-O {[%clk 0:03:01]}  a5 {[%clk 0:02:59]} 7. Nc3 {[%clk 0:03:01]}  c6 {[%clk 0:02:58]} 8. e3 {[%clk 0:02:57]}  b5 {[%clk 0:02:56]} 9. cxb5 {[%clk 0:02:51]}  cxb5 {[%clk 0:02:57]} 10. Nxb5 {[%clk 0:02:43]}  Ba6 {[%clk 0:02:57]} 11. a4 {[%clk 0:02:39]}  Qc7 {[%clk 0:02:57]} 12. Bb2 {[%clk 0:02:35]}  Qb7 {[%clk 0:02:58]} 13. Qe2 {[%clk 0:02:31]}  Nc6 {[%clk 0:02:57]} 14. Rfc1 {[%clk 0:02:28]}  Rab8 {[%clk 0:02:50]} 15. Nfd4 {[%clk 0:02:06]}  Nxd4 {[%clk 0:02:34]} 16. Bxd4 {[%clk 0:02:07]}  Bxb5 {[%clk 0:02:35]} 17. axb5 {[%clk 0:02:06]}  Qxb5 {[%clk 0:02:36]} 18. Qxb5 {[%clk 0:02:03]}  Rxb5 {[%clk 0:02:37]} 19. Rc7 {[%clk 0:02:01]}  Bb4 {[%clk 0:02:33]} 20. Bf1 {[%clk 0:01:54]}  Rbb8 {[%clk 0:02:29]} 21. Bc5 {[%clk 0:01:51]}  Bxc5 {[%clk 0:02:22]} 22. Rxc5 {[%clk 0:01:51]}  Rxb3 {[%clk 0:02:23]} 23. Rcxa5 {[%clk 0:01:50]}  Rb2 {[%clk 0:02:22]} 24. R5a2 {[%clk 0:01:48]}  Rb6 {[%clk 0:02:17]} 25. d4 {[%clk 0:01:45]}  g6 {[%clk 0:02:17]} 26. Bd3 {[%clk 0:01:43]}  Rfb8 {[%clk 0:02:16]} 27. Ra8 {[%clk 0:01:37]}  Rxa8 {[%clk 0:02:12]} 28. Rxa8+ {[%clk 0:01:38]}  Kg7 {[%clk 0:02:13]} 29. Ra2 {[%clk 0:01:36]}  Rb3 {[%clk 0:02:12]} 30. Rd2 {[%clk 0:01:35]}  Rc3 {[%clk 0:02:11]} 31. Kg2 {[%clk 0:01:34]}  h5 {[%clk 0:02:12]} 32. h3 {[%clk 0:01:34]}  Ra3 {[%clk 0:02:11]} 33. Kf3 {[%clk 0:01:34]}  Ra1 {[%clk 0:02:08]} 34. Kg2 {[%clk 0:01:34]}  Ne8 {[%clk 0:02:04]} 35. Kh2 {[%clk 0:01:33]}  Nd6 {[%clk 0:02:04]} 36. Kg2 {[%clk 0:01:33]}  Kf6 {[%clk 0:02:03]} 37. Kf3 {[%clk 0:01:32]}  Rg1 {[%clk 0:01:54]} 38. h4 {[%clk 0:01:24]}  Kg7 {[%clk 0:01:52]} 39. Ke2 {[%clk 0:01:24]}  Ne8 {[%clk 0:01:50]} 40. Rd1 {[%clk 0:01:04]}  Rg2 {[%clk 0:01:46]} 41. Kf1 {[%clk 0:01:04]}  Rh2 {[%clk 0:01:41]} 42. Kg1 {[%clk 0:01:04]}  Rh3 {[%clk 0:01:38]} 43. Kg2 {[%clk 0:01:04]}  Rxh4 {[%clk 0:01:37]} 44. gxh4 {[%clk 0:01:04]}  Nf6 {[%clk 0:01:38]} 45. Rh1 {[%clk 0:01:04]}  Ng4 {[%clk 0:01:38]} 46. Be2 {[%clk 0:01:02]}  Nf6 {[%clk 0:01:39]} 47. Bf3 {[%clk 0:01:02]}  Ne4 {[%clk 0:01:40]} 48. Bxe4 {[%clk 0:01:02]}  dxe4 {[%clk 0:01:40]} 49. Ra1 {[%clk 0:01:01]} 1-0


[Site "https://www.chess.com"]

[Event "Titled Tuesday Blitz July 11 Early 2023"]
[White "Nithyalakshmi, Sivanesan"]
[Black "Moskvin, Anatoly"]
[WhiteFideId "5706955"]
[BlackFideId "24199990"]
[WhiteElo "2364"]
[BlackElo "2507"]
[Result "0-1"]
[Round "4"]
[TimeControl "180+2"]
[Date "2023.07.11"]
[WhiteClock "0:00:08"]
[BlackClock "0:00:37"]
[Board "146"]

1. e4 {[%clk 0:02:56]}  e5 {[%clk 0:03:00]} 2. Nf3 {[%clk 0:02:55]}  Nc6 {[%clk 0:03:00]} 3. d4 {[%clk 0:02:55]}  exd4 {[%clk 0:03:01]} 4. Nxd4 {[%clk 0:02:56]}  Bc5 {[%clk 0:03:01]} 5. Nb3 {[%clk 0:02:56]}  Bb6 {[%clk 0:03:00]} 6. Nc3 {[%clk 0:02:56]}  Nge7 {[%clk 0:03:01]} 7. Qe2 {[%clk 0:02:56]}  O-O {[%clk 0:03:01]} 8. Be3 {[%clk 0:02:56]}  d6 {[%clk 0:03:00]} 9. O-O-O {[%clk 0:02:56]}  f5 {[%clk 0:03:01]} 10. f4 {[%clk 0:02:37]}  fxe4 {[%clk 0:02:56]} 11. g3 {[%clk 0:02:37]}  Nf5 {[%clk 0:02:37]} 12. Bxb6 {[%clk 0:02:17]}  axb6 {[%clk 0:02:38]} 13. Qxe4 {[%clk 0:02:13]}  Re8 {[%clk 0:02:32]} 14. Qf3 {[%clk 0:01:43]}  Be6 {[%clk 0:02:29]} 15. Bb5 {[%clk 0:01:24]}  Kh8 {[%clk 0:02:18]} 16. Kb1 {[%clk 0:01:16]}  Qf6 {[%clk 0:02:07]} 17. Bxc6 {[%clk 0:01:12]}  bxc6 {[%clk 0:02:08]} 18. Qxc6 {[%clk 0:01:11]}  Ne3 {[%clk 0:02:07]} 19. Rd2 {[%clk 0:01:01]}  Bxb3 {[%clk 0:01:49]} 20. axb3 {[%clk 0:00:56]}  Qf5 {[%clk 0:01:45]} 21. Qb5 {[%clk 0:00:48]}  Qg6 {[%clk 0:01:31]} 22. Nd5 {[%clk 0:00:31]}  Ra5 {[%clk 0:01:25]} 23. Qc6 {[%clk 0:00:16]}  Rc5 {[%clk 0:00:36]} 24. Qb7 {[%clk 0:00:09]}  Nxd5 {[%clk 0:00:36]} 25. Rxd5 {[%clk 0:00:08]}  Qxc2+ {[%clk 0:00:37]} 26. Ka1 {[%clk 0:00:08]}  Rxd5 {[%clk 0:00:37]} 27. Qxd5 {[%clk 0:00:08]}  c6 {[%clk 0:00:38]} 28. Qd1 {[%clk 0:00:08]}  Ra8# {[%clk 0:00:37]} 0-1


[Site "https://www.chess.com"]

[Event "Titled Tuesday Blitz July 11 Early 2023"]
[White "Lehtosaari, Mauri"]
[Black "Buscar, Michael"]
[WhiteFideId "501999"]
[BlackFideId "2603616"]
[WhiteElo "2506"]
[BlackElo "2361"]
[Result "1-0"]
[Round "4"]
[TimeControl "180+2"]
[Date "2023.07.11"]
[WhiteClock "0:00:11"]
[BlackClock "0:00:00"]
[Board "148"]

1. d4 {[%clk 0:02:57]}  d5 {[%clk 0:02:47]} 2. Nf3 {[%clk 0:02:57]}  Nc6 {[%clk 0:02:42]} 3. Bg5 {[%clk 0:02:57]}  h6 {[%clk 0:02:40]} 4. Bh4 {[%clk 0:02:57]}  g5 {[%clk 0:02:40]} 5. Bg3 {[%clk 0:02:57]}  f5 {[%clk 0:02:39]} 6. Be5 {[%clk 0:02:56]}  Nxe5 {[%clk 0:02:38]} 7. Nxe5 {[%clk 0:02:56]}  Nf6 {[%clk 0:02:25]} 8. e3 {[%clk 0:02:50]}  c6 {[%clk 0:02:19]} 9. Nd2 {[%clk 0:02:49]}  Be6 {[%clk 0:02:19]} 10. Bd3 {[%clk 0:02:36]}  Bg7 {[%clk 0:02:11]} 11. c3 {[%clk 0:02:36]}  Qc7 {[%clk 0:02:06]} 12. Qc2 {[%clk 0:02:33]}  Ne4 {[%clk 0:02:03]} 13. Ng6 {[%clk 0:02:30]}  Rg8 {[%clk 0:01:59]} 14. f3 {[%clk 0:02:18]}  Nxd2 {[%clk 0:01:53]} 15. Kxd2 {[%clk 0:02:18]}  f4 {[%clk 0:01:53]} 16. Rae1 {[%clk 0:01:50]}  Bf6 {[%clk 0:01:10]} 17. Kc1 {[%clk 0:01:40]}  fxe3 {[%clk 0:01:07]} 18. Kb1 {[%clk 0:01:36]}  O-O-O {[%clk 0:01:02]} 19. Rxe3 {[%clk 0:01:30]}  Bf7 {[%clk 0:00:57]} 20. Ne5 {[%clk 0:01:23]}  Be8 {[%clk 0:00:52]} 21. h3 {[%clk 0:01:19]}  h5 {[%clk 0:00:48]} 22. Bf5+ {[%clk 0:01:12]}  Kb8 {[%clk 0:00:48]} 23. Ka1 {[%clk 0:01:09]}  c5 {[%clk 0:00:31]} 24. Rhe1 {[%clk 0:00:59]}  cxd4 {[%clk 0:00:31]} 25. cxd4 {[%clk 0:01:00]}  Qxc2 {[%clk 0:00:31]} 26. Bxc2 {[%clk 0:01:01]}  g4 {[%clk 0:00:22]} 27. hxg4 {[%clk 0:00:56]}  hxg4 {[%clk 0:00:21]} 28. Nxg4 {[%clk 0:00:52]}  Bxd4 {[%clk 0:00:20]} 29. Rxe7 {[%clk 0:00:53]}  Rc8 {[%clk 0:00:09]} 30. Bf5 {[%clk 0:00:47]}  Rd8 {[%clk 0:00:09]} 31. Be6 {[%clk 0:00:46]}  Rh8 {[%clk 0:00:06]} 32. Bxd5 {[%clk 0:00:40]}  Bd7 {[%clk 0:00:07]} 33. Be6 {[%clk 0:00:34]}  Bb5 {[%clk 0:00:04]} 34. Bb3 {[%clk 0:00:31]}  Bc5 {[%clk 0:00:04]} 35. R7e5 {[%clk 0:00:30]}  b6 {[%clk 0:00:03]} 36. a4 {[%clk 0:00:27]}  Ba6 {[%clk 0:00:02]} 37. a5 {[%clk 0:00:27]}  Bb7 {[%clk 0:00:01]} 38. Ka2 {[%clk 0:00:23]}  Bd4 {[%clk 0:00:02]} 39. Re7 {[%clk 0:00:22]}  Rh5 {[%clk 0:00:03]} 40. axb6 {[%clk 0:00:21]}  axb6 {[%clk 0:00:03]} 41. R1e2 {[%clk 0:00:19]}  Ra5+ {[%clk 0:00:03]} 42. Kb1 {[%clk 0:00:20]}  Rb5 {[%clk 0:00:03]} 43. Bc4 {[%clk 0:00:19]}  Rb4 {[%clk 0:00:03]} 44. Ba2 {[%clk 0:00:16]}  Ba6 {[%clk 0:00:03]} 45. Rd2 {[%clk 0:00:13]}  Kc8 {[%clk 0:00:02]} 46. Re4 {[%clk 0:00:12]}  Bb5 {[%clk 0:00:01]} 47. Be6+ {[%clk 0:00:11]}  Kb7 {[%clk 0:00:00]} 48. Ne5 {[%clk 0:00:11]} 1-0


[Site "https://www.chess.com"]

[Event "Titled Tuesday Blitz July 11 Early 2023"]
[White "Dubreuil, Julien"]
[Black "Manukian, Artak"]
[WhiteFideId "621285"]
[BlackFideId "13301373"]
[WhiteElo "2346"]
[BlackElo "2503"]
[Result "1-0"]
[Round "4"]
[TimeControl "180+2"]
[Date "2023.07.11"]
[WhiteClock "0:01:20"]
[BlackClock "0:00:12"]
[Board "150"]

1. e4 {[%clk 0:03:00]}  c6 {[%clk 0:02:58]} 2. Nf3 {[%clk 0:03:00]}  d5 {[%clk 0:02:57]} 3. exd5 {[%clk 0:03:01]}  cxd5 {[%clk 0:02:55]} 4. Ne5 {[%clk 0:03:01]}  a6 {[%clk 0:02:54]} 5. d4 {[%clk 0:03:01]}  e6 {[%clk 0:02:52]} 6. Bd3 {[%clk 0:03:00]}  Nd7 {[%clk 0:02:49]} 7. O-O {[%clk 0:03:00]}  Ne7 {[%clk 0:02:48]} 8. Re1 {[%clk 0:02:59]}  Nxe5 {[%clk 0:02:46]} 9. dxe5 {[%clk 0:02:59]}  Nc6 {[%clk 0:02:46]} 10. Nd2 {[%clk 0:02:59]}  Nb4 {[%clk 0:02:38]} 11. Bf1 {[%clk 0:02:58]}  Be7 {[%clk 0:02:33]} 12. Nf3 {[%clk 0:02:54]}  O-O {[%clk 0:02:31]} 13. c3 {[%clk 0:02:53]}  Nc6 {[%clk 0:02:30]} 14. Bd3 {[%clk 0:02:53]}  h6 {[%clk 0:02:28]} 15. Bc2 {[%clk 0:02:53]}  f5 {[%clk 0:02:05]} 16. exf6 {[%clk 0:02:52]}  Rxf6 {[%clk 0:02:05]} 17. Qd3 {[%clk 0:02:52]}  Rf5 {[%clk 0:01:57]} 18. Qe2 {[%clk 0:02:51]}  Rf8 {[%clk 0:01:51]} 19. Qd3 {[%clk 0:02:50]}  Rf5 {[%clk 0:01:48]} 20. g4 {[%clk 0:02:50]}  Rxf3 {[%clk 0:01:40]} 21. Qxf3 {[%clk 0:02:32]}  e5 {[%clk 0:01:41]} 22. Bb3 {[%clk 0:02:29]}  Be6 {[%clk 0:01:33]} 23. Bf4 {[%clk 0:02:29]}  Qd6 {[%clk 0:01:28]} 24. Rad1 {[%clk 0:02:26]}  Rd8 {[%clk 0:01:21]} 25. Bg3 {[%clk 0:02:06]}  Bf6 {[%clk 0:01:16]} 26. Qg2 {[%clk 0:01:56]}  Na5 {[%clk 0:01:07]} 27. Bc2 {[%clk 0:01:52]}  Nc4 {[%clk 0:00:47]} 28. Bb3 {[%clk 0:01:48]}  b5 {[%clk 0:00:43]} 29. h3 {[%clk 0:01:47]}  Nxb2 {[%clk 0:00:33]} 30. Rd2 {[%clk 0:01:47]}  Na4 {[%clk 0:00:29]} 31. Rde2 {[%clk 0:01:44]}  Bf7 {[%clk 0:00:25]} 32. Bxe5 {[%clk 0:01:41]}  Bxe5 {[%clk 0:00:21]} 33. Rxe5 {[%clk 0:01:41]}  Nxc3 {[%clk 0:00:22]} 34. Qf3 {[%clk 0:01:34]}  b4 {[%clk 0:00:16]} 35. Re7 {[%clk 0:01:33]}  Qf6 {[%clk 0:00:15]} 36. Qxf6 {[%clk 0:01:24]}  gxf6 {[%clk 0:00:16]} 37. Ra7 {[%clk 0:01:21]}  Ne4 {[%clk 0:00:15]} 38. Rxe4 {[%clk 0:01:20]}  dxe4 {[%clk 0:00:12]} 39. Bxf7+ {[%clk 0:01:20]} 1-0


[Site "https://www.chess.com"]

[Event "Titled Tuesday Blitz July 11 Early 2023"]
[White "Brunner, Nicolas"]
[Black "Avalos Parra, Joao"]
[WhiteFideId "620246"]
[BlackFideId "3402541"]
[WhiteElo "2499"]
[BlackElo "2338"]
[Result "1-0"]
[Round "4"]
[TimeControl "180+2"]
[Date "2023.07.11"]
[WhiteClock "0:02:32"]
[BlackClock "0:00:00"]
[Board "152"]

1. Nf3 {[%clk 0:03:00]}  d5 {[%clk 0:02:59]} 2. g3 {[%clk 0:03:01]}  Nf6 {[%clk 0:02:59]} 3. Bg2 {[%clk 0:03:01]}  e6 {[%clk 0:02:59]} 4. d4 {[%clk 0:03:00]}  Be7 {[%clk 0:02:58]} 5. O-O {[%clk 0:03:00]}  O-O {[%clk 0:02:58]} 6. c4 {[%clk 0:03:00]}  c6 {[%clk 0:02:54]} 7. Qc2 {[%clk 0:02:53]}  Nbd7 {[%clk 0:02:54]} 8. Nbd2 {[%clk 0:02:47]}  a5 {[%clk 0:02:54]} 9. e4 {[%clk 0:02:47]}  dxe4 {[%clk 0:02:52]} 10. Nxe4 {[%clk 0:02:47]}  Nxe4 {[%clk 0:02:52]} 11. Qxe4 {[%clk 0:02:47]}  Nf6 {[%clk 0:02:53]} 12. Qe2 {[%clk 0:02:47]}  a4 {[%clk 0:02:53]} 13. Rd1 {[%clk 0:02:46]}  Bd7 {[%clk 0:02:49]} 14. Ne5 {[%clk 0:02:46]}  Qc8 {[%clk 0:02:50]} 15. Bf4 {[%clk 0:02:43]}  Rd8 {[%clk 0:02:49]} 16. Rac1 {[%clk 0:02:42]}  Be8 {[%clk 0:02:48]} 17. h4 {[%clk 0:02:41]}  Nd7 {[%clk 0:00:00]} 18. Nf3 {[%clk 0:02:32]} 1-0


[Site "https://www.chess.com"]

[Event "Titled Tuesday Blitz July 11 Early 2023"]
[White "AlivodicDario"]
[Black "Bogaudinov, Rushan"]
[BlackFideId "4129288"]
[WhiteElo "2498"]
[BlackElo "2332"]
[Result "0-1"]
[Round "4"]
[TimeControl "180+2"]
[Date "2023.07.11"]
[WhiteClock "0:00:00"]
[BlackClock "0:00:32"]
[Board "153"]

1. d4 {[%clk 0:02:39]}  d5 {[%clk 0:02:59]} 2. c4 {[%clk 0:02:38]}  dxc4 {[%clk 0:02:59]} 3. Nf3 {[%clk 0:02:38]}  e6 {[%clk 0:03:00]} 4. e3 {[%clk 0:02:38]}  c5 {[%clk 0:03:00]} 5. Bxc4 {[%clk 0:02:39]}  Nf6 {[%clk 0:03:00]} 6. O-O {[%clk 0:02:37]}  Be7 {[%clk 0:03:00]} 7. dxc5 {[%clk 0:02:37]}  Qxd1 {[%clk 0:02:58]} 8. Rxd1 {[%clk 0:02:37]}  Bxc5 {[%clk 0:02:59]} 9. Nbd2 {[%clk 0:02:37]}  O-O {[%clk 0:02:58]} 10. Nb3 {[%clk 0:02:36]}  Be7 {[%clk 0:02:57]} 11. Nfd4 {[%clk 0:02:36]}  a6 {[%clk 0:02:57]} 12. Be2 {[%clk 0:02:36]}  b5 {[%clk 0:02:33]} 13. Na5 {[%clk 0:02:30]}  Ra7 {[%clk 0:02:31]} 14. Ndc6 {[%clk 0:02:26]}  Nxc6 {[%clk 0:02:30]} 15. Nxc6 {[%clk 0:02:27]}  Rc7 {[%clk 0:02:30]} 16. Nxe7+ {[%clk 0:02:27]}  Rxe7 {[%clk 0:02:31]} 17. b3 {[%clk 0:02:26]}  Bb7 {[%clk 0:02:30]} 18. Ba3 {[%clk 0:02:26]}  Ree8 {[%clk 0:02:18]} 19. Bxf8 {[%clk 0:02:08]}  Kxf8 {[%clk 0:02:19]} 20. Rac1 {[%clk 0:02:09]}  g5 {[%clk 0:01:58]} 21. Rc7 {[%clk 0:02:06]}  Bd5 {[%clk 0:01:56]} 22. Bf3 {[%clk 0:02:06]}  Ra8 {[%clk 0:01:47]} 23. h3 {[%clk 0:01:45]}  h5 {[%clk 0:01:41]} 24. e4 {[%clk 0:00:36]}  Nxe4 {[%clk 0:01:38]} 25. Bxe4 {[%clk 0:00:27]}  Bxe4 {[%clk 0:01:39]} 26. Rdd7 {[%clk 0:00:28]}  Bg6 {[%clk 0:01:39]} 27. Ra7 {[%clk 0:00:28]}  Rc8 {[%clk 0:01:39]} 28. Rxa6 {[%clk 0:00:24]}  Rc1+ {[%clk 0:01:39]} 29. Kh2 {[%clk 0:00:24]}  Rc2 {[%clk 0:01:39]} 30. Ra8+ {[%clk 0:00:20]}  Kg7 {[%clk 0:01:38]} 31. Rb8 {[%clk 0:00:16]}  Rxa2 {[%clk 0:01:32]} 32. Rxb5 {[%clk 0:00:17]}  Rxf2 {[%clk 0:01:32]} 33. Rxg5 {[%clk 0:00:18]}  Kf6 {[%clk 0:01:28]} 34. Rg3 {[%clk 0:00:17]}  Bf5 {[%clk 0:01:21]} 35. Rd4 {[%clk 0:00:12]}  Rb2 {[%clk 0:01:18]} 36. b4 {[%clk 0:00:08]}  e5 {[%clk 0:01:16]} 37. Rh4 {[%clk 0:00:07]}  Bg6 {[%clk 0:01:04]} 38. Rf3+ {[%clk 0:00:07]}  Kg5 {[%clk 0:01:00]} 39. Rc4 {[%clk 0:00:06]}  e4 {[%clk 0:00:56]} 40. Rg3+ {[%clk 0:00:04]}  Kf4 {[%clk 0:00:55]} 41. Rgc3 {[%clk 0:00:01]}  f5 {[%clk 0:00:51]} 42. Rc2 {[%clk 0:00:01]}  Rb3 {[%clk 0:00:50]} 43. Rf2+ {[%clk 0:00:01]}  Ke3 {[%clk 0:00:48]} 44. Rf1 {[%clk 0:00:01]}  Rb2 {[%clk 0:00:39]} 45. Re1+ {[%clk 0:00:01]}  Kd3 {[%clk 0:00:38]} 46. Rec1 {[%clk 0:00:02]}  e3 {[%clk 0:00:36]} 47. R4c3+ {[%clk 0:00:02]}  Kd2 {[%clk 0:00:37]} 48. Rc8 {[%clk 0:00:02]}  f4 {[%clk 0:00:33]} 49. Rg1 {[%clk 0:00:01]}  Rxb4 {[%clk 0:00:32]} 50. Rd8+ {[%clk 0:00:00]}  Bd3 {[%clk 0:00:32]} 0-1


[Site "https://www.chess.com"]

[Event "Titled Tuesday Blitz July 11 Early 2023"]
[White "Fajdetic, Hrvoje"]
[Black "Tokhirjonova, Gulrukhbegim"]
[WhiteFideId "14501945"]
[BlackFideId "14203626"]
[WhiteElo "2331"]
[BlackElo "2498"]
[Result "0-1"]
[Round "4"]
[TimeControl "180+2"]
[Date "2023.07.11"]
[WhiteClock "0:00:01"]
[BlackClock "0:00:38"]
[Board "154"]

1. d4 {[%clk 0:02:51]}  Nf6 {[%clk 0:02:51]} 2. Bf4 {[%clk 0:02:50]}  e6 {[%clk 0:02:46]} 3. e3 {[%clk 0:02:47]}  c5 {[%clk 0:02:47]} 4. Nd2 {[%clk 0:02:40]}  Nc6 {[%clk 0:02:45]} 5. c3 {[%clk 0:02:38]}  d6 {[%clk 0:02:44]} 6. Bb5 {[%clk 0:02:16]}  Bd7 {[%clk 0:02:41]} 7. dxc5 {[%clk 0:02:15]}  dxc5 {[%clk 0:02:41]} 8. Nc4 {[%clk 0:02:14]}  Nd5 {[%clk 0:02:40]} 9. Nd6+ {[%clk 0:02:10]}  Bxd6 {[%clk 0:02:39]} 10. Bxd6 {[%clk 0:02:11]}  Qb6 {[%clk 0:02:39]} 11. c4 {[%clk 0:01:58]}  Nf6 {[%clk 0:02:33]} 12. Nf3 {[%clk 0:01:44]}  O-O-O {[%clk 0:02:31]} 13. Bg3 {[%clk 0:01:34]}  e5 {[%clk 0:02:28]} 14. Bxc6 {[%clk 0:01:24]}  Bxc6 {[%clk 0:02:28]} 15. Qe2 {[%clk 0:01:18]}  Qb4+ {[%clk 0:02:23]} 16. Kf1 {[%clk 0:01:17]}  Be4 {[%clk 0:01:57]} 17. Nxe5 {[%clk 0:01:01]}  Rhe8 {[%clk 0:01:55]} 18. f3 {[%clk 0:00:59]}  Rxe5 {[%clk 0:01:54]} 19. fxe4 {[%clk 0:00:56]}  Rxe4 {[%clk 0:01:55]} 20. Rd1 {[%clk 0:00:33]}  Rxd1+ {[%clk 0:01:51]} 21. Qxd1 {[%clk 0:00:33]}  Qxc4+ {[%clk 0:01:52]} 22. Kf2 {[%clk 0:00:27]}  Ng4+ {[%clk 0:01:51]} 23. Kg1 {[%clk 0:00:17]}  Nxe3 {[%clk 0:01:48]} 24. Qb1 {[%clk 0:00:06]}  Nc2 {[%clk 0:01:39]} 25. h3 {[%clk 0:00:05]}  Re2 {[%clk 0:01:35]} 26. Kh2 {[%clk 0:00:05]}  Qe4 {[%clk 0:01:35]} 27. Rg1 {[%clk 0:00:05]}  f5 {[%clk 0:01:31]} 28. Qf1 {[%clk 0:00:05]}  g5 {[%clk 0:01:30]} 29. Bd6 {[%clk 0:00:03]}  Nd4 {[%clk 0:01:20]} 30. Kh1 {[%clk 0:00:03]}  b6 {[%clk 0:01:17]} 31. b4 {[%clk 0:00:03]}  c4 {[%clk 0:01:12]} 32. a4 {[%clk 0:00:02]}  c3 {[%clk 0:01:13]} 33. a5 {[%clk 0:00:02]}  c2 {[%clk 0:01:12]} 34. axb6 {[%clk 0:00:03]}  axb6 {[%clk 0:01:13]} 35. b5 {[%clk 0:00:03]}  f4 {[%clk 0:01:10]} 36. Qa1 {[%clk 0:00:03]}  Nxb5 {[%clk 0:01:07]} 37. Qa6+ {[%clk 0:00:02]}  Kd7 {[%clk 0:01:02]} 38. Qxb5+ {[%clk 0:00:03]}  Kxd6 {[%clk 0:01:01]} 39. Qxg5 {[%clk 0:00:04]}  Rxg2 {[%clk 0:00:56]} 40. Rxg2 {[%clk 0:00:03]}  c1=Q+ {[%clk 0:00:57]} 41. Kh2 {[%clk 0:00:04]}  Qce3 {[%clk 0:00:52]} 42. Qd8+ {[%clk 0:00:04]}  Ke5 {[%clk 0:00:50]} 43. Rg5+ {[%clk 0:00:03]}  Ke6 {[%clk 0:00:42]} 44. Qe8+ {[%clk 0:00:02]}  Kf6 {[%clk 0:00:39]} 45. Qd8+ {[%clk 0:00:02]}  Qe7 {[%clk 0:00:39]} 46. Rf5+ {[%clk 0:00:01]}  Kxf5 {[%clk 0:00:38]} 0-1


[Site "https://www.chess.com"]